fUST/lending_fUST_20241205
["ID","MTS","AMOUNT","RATE_DAILY","PERIOD"]
[344380577,1733398245847,-500.0,0.00026006,2]
[344380578,1733398245856,-500.0,0.00026006,2]
[344380579,1733398245866,-500.0,0.00026027,2]
[344380580,1733398245875,-500.0,0.00026027,2]
[344380581,1733398245885,-217.0,0.0002612,18]
[344380582,1733398245894,-1067.84759488,0.00026167,2]
[344380583,1733398245904,-155.00000018,0.00026171,2]
[344380584,1733398245914,-500.0,0.000262,2]
[344380586,1733398245923,-500.0,0.000262,2]
[344380587,1733398245933,-500.0,0.000262,2]
[344380588,1733398245943,-500.0,0.000262,2]
[344380589,1733398245952,-547.84,0.00026269,2]
[344380590,1733398245961,-605.0,0.00026269,2]
[344380591,1733398245975,-514.92,0.00026269,2]
[344380592,1733398245984,-500.0,0.0002627,10]
[344380593,1733398245993,-500.0,0.0002627,10]
[344380594,1733398246003,-500.0,0.0002628,2]
[344380595,1733398246012,-500.0,0.0002628,2]
[344380596,1733398246021,-172.299116,0.0002628,7]
[344380597,1733398246030,-172.299116,0.0002628,7]
[344380598,1733398246040,-395.519165,0.0002628,7]
[344380599,1733398246049,-395.519165,0.0002628,7]
[344380600,1733398246058,-1000.0,0.00026284,2]
[344380601,1733398246067,-1000.0,0.00026297,2]
[344380602,1733398246077,-152.613386,0.00026301,7]
[344380604,1733398246086,-152.613386,0.00026301,7]
[344380606,1733398246095,-500.0,0.00026301,2]
[344380607,1733398246104,-500.0,0.00026301,2]
[344380608,1733398246114,-1000.0,0.00026342,2]
[344380609,1733398246124,-1000.0,0.00026361,2]
[344380610,1733398246133,-352.705194,0.00026361,7]
[344380612,1733398246143,-352.705194,0.00026361,7]
[344380613,1733398246152,-660.0,0.00026384,2]
[344380614,1733398246161,-400.0,0.00026386,2]
[344380615,1733398246170,-1000.0,0.00026389,2]
[344380616,1733398246179,-1000.0,0.0002642,2]
[344380617,1733398246189,-500.0,0.00026474,2]
[344380619,1733398246199,-607.79677002,0.00026474,2]
[344380620,1733398246209,-501.68323968,0.00026474,2]
[344380621,1733398246222,-500.0,0.00026474,2]
[344380622,1733398246232,-231.2,0.00026476,5]
[344380623,1733398246241,-151.0,0.00026478,7]
[344380624,1733398246251,-151.0,0.00026478,7]
[344380625,1733398246260,-151.0,0.00026478,7]
[344380626,1733398246271,-172.322764,0.00026478,7]
[344380627,1733398246281,-172.322764,0.00026478,7]
[344380628,1733398246292,-1000.0,0.00026489,2]
[344380629,1733398246303,-4000.0,0.000265,10]
[344380630,1733398246313,-152.537679,0.000265,7]
[344380631,1733398246323,-470.961035,0.000265,7]
[344380632,1733398246333,-470.961035,0.000265,7]
[344380633,1733398246346,-151.0,0.000265,7]
[344380634,1733398246355,-151.0,0.000265,7]
[344380636,1733398246365,-151.0,0.000265,7]
[344380638,1733398246374,-151.0,0.000265,7]
[344380639,1733398246383,-151.0,0.000265,7]
[344380640,1733398246393,-151.0,0.000265,7]
[344380641,1733398246403,-151.0,0.000265,7]
[344380642,1733398246412,-152.89163,0.00026521,7]
[344380643,1733398246424,-547.84,0.00026543,2]
[344380644,1733398246434,-605.0,0.00026543,2]
[344380645,1733398246444,-500.0,0.00026554,2]
[344380646,1733398246454,-500.0,0.00026554,2]
[344380647,1733398246463,-1000.0,0.00026569,2]
[344380648,1733398246478,-500.0,0.00026575,2]
[344380649,1733398246488,-500.0,0.00026575,2]
[344380650,1733398246497,-8615.37,0.000266,2]
[344380651,1733398246509,-151.0,0.000266,7]
[344380652,1733398246519,-151.0,0.000266,7]
[344380653,1733398246529,-151.0,0.000266,7]
[344380654,1733398246539,-1000.0,0.00026613,2]
[344380655,1733398246550,-823.0,0.00026619,2]
[344380656,1733398246560,-1000.0,0.00026666,2]
[344380657,1733398246570,-385.2952707,0.000267,2]
[344380658,1733398246580,-1000.0,0.00026737,2]
[344380659,1733398246590,-500.0,0.00026748,2]
[344380660,1733398246600,-762.66656963,0.00026748,2]
[344380661,1733398246610,-1304.03,0.000268,14]
[344380662,1733398246619,-1067.84759488,0.000268,2]
[344380663,1733398246629,-153.0,0.00026813,2]
[344380664,1733398246638,-153.0,0.00026813,2]
[344380665,1733398246648,-153.0,0.00026813,2]
[344380666,1733398246658,-547.84,0.00026817,2]
[344380667,1733398246667,-605.0,0.00026817,2]
[344380668,1733398246677,-500.0,0.00026828,2]
[344380669,1733398246687,-500.0,0.00026828,2]
[344380670,1733398246696,-332.77348463,0.00026849,2]
[344380671,1733398246706,-500.0,0.00026849,2]
[344380672,1733398246715,-500.0,0.00026973,2]
[344380673,1733398246728,-500.0,0.00026973,2]
[344380674,1733398246737,-500.0,0.00026973,2]
[344380675,1733398246746,-500.0,0.00026973,2]
[344380676,1733398246755,-500.0,0.00026973,2]
[344380677,1733398246768,-150.0,0.00026996,2]
[344380678,1733398246777,-310.0,0.00027,14]
[344380679,1733398246786,-310.0,0.00027,20]
[344380680,1733398246796,-24069.10764151,0.00027,2]
[344380681,1733398246806,-3617.78993725,0.00027,2]
[344380682,1733398246816,-11973.06646953,0.00027,2]
[344380683,1733398246825,-108744.22460416,0.00027,2]
[344380684,1733398246836,-463.21,0.00027,2]
[344380685,1733398246845,-152.613386,0.00027,7]
[344380686,1733398246855,-152.613386,0.00027,7]
[344380687,1733398246864,-151.0,0.00027,7]
[344380688,1733398246874,-151.0,0.00027,7]
[344380689,1733398246884,-151.0,0.00027,7]
[344380690,1733398246894,-3000.0,0.00027,2]
[344380691,1733398246906,-151.0,0.00027,7]
[344380692,1733398246916,-151.0,0.00027,7]
[344380693,1733398246925,-328.065593,0.00027,7]
[344380694,1733398246934,-328.065593,0.00027,7]
[344380695,1733398246944,-820.966407,0.00027,7]
[344380696,1733398246954,-820.966407,0.00027,7]
[344380697,1733398246964,-159.909918,0.00027,7]
[344380698,1733398246981,-520.444339,0.00027,7]
[344380699,1733398246991,-520.444339,0.00027,7]
[344380700,1733398247001,-151.0,0.00027,7]
[344380701,1733398247011,-151.0,0.00027,7]
[344380702,1733398247021,-151.0,0.00027,7]
[344380703,1733398247031,-385.020858,0.00027,7]
[344380704,1733398247041,-385.020858,0.00027,7]
[344380705,1733398247051,-172.322764,0.00027,7]
[344380706,1733398247061,-172.322764,0.00027,7]
[344380707,1733398247070,-500.0,0.00027,2]
[344380708,1733398247080,-500.0,0.00027,2]
[344380709,1733398247090,-500.0,0.00027,2]
[344380710,1733398247100,-283.41723707,0.00027,2]
[344380711,1733398247110,-470.961035,0.00027,7]
[344380712,1733398247120,-470.961035,0.00027,7]
[344380713,1733398247130,-151.0,0.00027,7]
[344380714,1733398247140,-151.0,0.00027,7]
[344380715,1733398247149,-151.0,0.00027,7]
[344380716,1733398247159,-151.0,0.00027,7]
[344380717,1733398247168,-151.0,0.00027,7]
[344380718,1733398247178,-1995.007515,0.00027,2]
[344380719,1733398247187,-151.0,0.00027,7]
[344380720,1733398247197,-151.0,0.00027,7]
[344380721,1733398247208,-150.5366,0.00027,2]
[344380722,1733398247217,-151.0,0.00027,7]
[344380723,1733398247230,-234.153574,0.00027,7]
[344380724,1733398247239,-151.0,0.00027,7]
[344380725,1733398247249,-151.0,0.00027,7]
[344380726,1733398247258,-1544.0,0.00027,13]
[344380727,1733398247268,-172.299116,0.00027,7]
[344380728,1733398247278,-172.299116,0.00027,7]
[344380729,1733398247287,-395.519165,0.00027,7]
[344380730,1733398247298,-395.519165,0.00027,7]
[344380731,1733398247307,-352.705194,0.00027,7]
[344380732,1733398247316,-352.705194,0.00027,7]
[344380733,1733398247326,-3000.0,0.0002701,2]
[344380734,1733398247335,-3000.0,0.0002702,2]
[344380735,1733398247348,-500.0,0.00027022,2]
[344380736,1733398247357,-3000.0,0.0002703,2]
[344380737,1733398247366,-231.2,0.00027034,5]
[344380738,1733398247375,-3525.603613,0.0002704,2]
[344380739,1733398247386,-547.84,0.00027091,2]
[344380740,1733398247396,-605.0,0.00027091,2]
[344380741,1733398247405,-500.0,0.00027102,2]
[344380742,1733398247416,-500.0,0.00027102,2]
[344380743,1733398247426,-500.0,0.00027123,2]
[344380744,1733398247435,-249.0,0.00027185,2]
[344380745,1733398247445,-810.72030786,0.00027296,2]
[344380746,1733398247454,-666.0,0.00027297,2]
[344380747,1733398247463,-3000.0,0.00027315,7]
[344380748,1733398247475,-500.0,0.00027326,2]
[344380749,1733398247484,-547.84,0.00027365,2]
[344380750,1733398247493,-605.0,0.00027365,2]
[344380751,1733398247503,-500.0,0.00027376,2]
[344380752,1733398247512,-500.0,0.00027376,2]
[344380753,1733398247521,-500.0,0.00027397,2]
[344380754,1733398247531,-500.0,0.00027397,2]
[344380755,1733398247540,-500.0,0.00027397,2]
[344380756,1733398247550,-151.0,0.00027397,7]
[344380757,1733398247559,-151.0,0.00027397,7]
[344380758,1733398247568,-151.58247,0.00027397,7]
[344380759,1733398247577,-151.0,0.00027397,7]
[344380760,1733398247586,-151.0,0.00027397,7]
[344380761,1733398247595,-151.0,0.00027397,7]
[344380762,1733398247604,-3322.01,0.000274,30]
[344380763,1733398247614,-532.0,0.00027411,2]
[344380764,1733398247623,-2170.0,0.00027411,2]
[344380765,1733398247632,-2374.0,0.00027411,2]
[344380766,1733398247642,-2500.0,0.00027412,3]
[344380767,1733398247651,-2500.0,0.0002742,3]
[344380768,1733398247660,-2500.0,0.00027429,3]
[344380769,1733398247670,-1067.84759488,0.00027433,2]
[344380770,1733398247679,-2500.0,0.00027438,3]
[344380771,1733398247688,-155.00000001,0.0002748,2]
[344380772,1733398247699,-36301.24506366,0.000275,2]
[344380773,1733398247708,-152.613386,0.000275,7]
[344380774,1733398247719,-152.613386,0.000275,7]
[344380775,1733398247731,-151.0,0.000275,7]
[344380776,1733398247740,-151.0,0.000275,7]
[344380777,1733398247750,-151.0,0.000275,7]
[344380778,1733398247760,-328.065593,0.000275,7]
[344380779,1733398247770,-328.065593,0.000275,7]
[344380780,1733398247780,-820.966407,0.000275,7]
[344380781,1733398247790,-820.966407,0.000275,7]
[344380782,1733398247799,-159.909918,0.000275,7]
[344380783,1733398247809,-520.444339,0.000275,7]
[344380784,1733398247819,-520.444339,0.000275,7]
[344380785,1733398247829,-191.518248,0.000275,7]
[344380786,1733398247839,-385.020858,0.000275,7]
[344380787,1733398247849,-385.020858,0.000275,7]
[344380788,1733398247859,-151.09152224,0.00027519,2]
[344380789,1733398247869,-1000.0,0.00027521,5]
[344380790,1733398247879,-265.39146292,0.00027521,5]
[344380791,1733398247889,-1000.0,0.00027521,5]
[344380792,1733398247899,-1000.0,0.00027521,5]
[344380793,1733398247909,-231.2,0.00027593,5]
[344380794,1733398247919,-5000.0,0.00027593,7]
[344380795,1733398247928,-547.84,0.00027639,2]
[344380796,1733398247939,-605.0,0.00027639,2]
[344380797,1733398247949,-161.584649,0.00027641,2]
[344380798,1733398247959,-500.0,0.0002765,2]
[344380799,1733398247971,-500.0,0.0002765,2]
[344380800,1733398247981,-500.0,0.00027671,2]
[344380801,1733398247991,-500.0,0.00027671,2]
[344380802,1733398248000,-1000.0,0.00027874,5]
[344380803,1733398248010,-547.84,0.00027913,2]
[344380804,1733398248020,-605.0,0.00027913,2]
[344380805,1733398248030,-500.0,0.00027924,2]
[344380806,1733398248040,-237.39101596,0.00027924,2]
[344380807,1733398248050,-500.0,0.00027945,2]
[344380808,1733398248060,-500.0,0.00027945,2]
[344380809,1733398248070,-32084.32670978,0.0002799,2]
[344380810,1733398248080,-1171.50965575,0.0002799,7]
[344380811,1733398248091,-172.299116,0.0002799,7]
[344380812,1733398248102,-172.299116,0.0002799,7]
[344380813,1733398248112,-395.519165,0.0002799,7]
[344380814,1733398248122,-395.519165,0.0002799,7]
[344380815,1733398248132,-42807.57145158,0.00028,2]
[344380816,1733398248142,-23137.54963021,0.00028,7]
[344380817,1733398248153,-217.0,0.00028,23]
[344380818,1733398248163,-151.0,0.00028,7]
[344380819,1733398248173,-328.065593,0.00028,7]
[344380820,1733398248183,-328.065593,0.00028,7]
[344380821,1733398248193,-820.966407,0.00028,7]
[344380822,1733398248203,-820.966407,0.00028,7]
[344380823,1733398248214,-159.909918,0.00028,7]
[344380824,1733398248228,-159.909918,0.00028,7]
[344380825,1733398248239,-520.444339,0.00028,7]
[344380826,1733398248249,-520.444339,0.00028,7]
[344380827,1733398248259,-151.0,0.00028,7]
[344380828,1733398248268,-151.0,0.00028,7]
[344380829,1733398248278,-385.020858,0.00028,7]
[344380830,1733398248287,-385.020858,0.00028,7]
[344380831,1733398248297,-172.322764,0.00028,7]
[344380832,1733398248307,-172.322764,0.00028,7]
[344380833,1733398248318,-470.961035,0.00028,7]
[344380834,1733398248329,-470.961035,0.00028,7]
[344380835,1733398248341,-151.0,0.00028,7]
[344380836,1733398248357,-151.0,0.00028,7]
[344380837,1733398248367,-151.0,0.00028,7]
[344380838,1733398248377,-151.0,0.00028,7]
[344380839,1733398248388,-151.0,0.00028,7]
[344380840,1733398248398,-151.0,0.00028,7]
[344380841,1733398248408,-151.0,0.00028,7]
[344380842,1733398248418,-151.0,0.00028,7]
[344380843,1733398248428,-151.0,0.00028,7]
[344380844,1733398248439,-151.0,0.00028,7]
[344380845,1733398248448,-151.0,0.00028,7]
[344380846,1733398248458,-352.705194,0.00028,7]
[344380847,1733398248469,-352.705194,0.00028,7]
[344380848,1733398248481,-166.0,0.00028,60]
[344380849,1733398248602,-160.0,0.00028013,3]
[344380850,1733398248614,-1067.84759488,0.00028067,2]
[344380851,1733398248624,-153.0,0.00028099,30]
[344380852,1733398248634,-231.2,0.00028151,6]
[344380853,1733398248645,-547.84,0.00028187,2]
[344380854,1733398248654,-605.0,0.00028187,2]
[344380855,1733398248664,-500.0,0.00028198,2]
[344380856,1733398248675,-8615.37,0.000282,2]
[344380857,1733398248685,-151.0,0.000282,7]
[344380858,1733398248695,-151.0,0.000282,7]
[344380859,1733398248704,-172.217951,0.00028214,2]
[344380860,1733398248714,-156.6288,0.00028214,2]
[344380861,1733398248729,-500.0,0.00028219,2]
[344380862,1733398248739,-169.28,0.00028219,2]
[344380863,1733398248750,-298.630478,0.00028301,30]
[344380864,1733398248760,-298.0,0.000284,120]
[344380865,1733398248770,-547.84,0.00028461,2]
[344380866,1733398248780,-605.0,0.00028461,2]
[344380867,1733398248790,-500.0,0.00028472,2]
[344380868,1733398248799,-500.0,0.00028493,2]
[344380869,1733398248809,-1544.0,0.000285,13]
[344380870,1733398248819,-500.0,0.00028522,5]
[344380871,1733398248828,-504.01307062,0.00028522,5]
[344380872,1733398248838,-500.0,0.00028522,5]
[344380873,1733398248848,-1304.03,0.000286,30]
[344380874,1733398248858,-3200.0,0.00028601,2]
[344380875,1733398248867,-500.31,0.00028601,2]
[344380876,1733398248877,-150.0,0.00028601,2]
[344380877,1733398248887,-1067.84759488,0.000287,2]
[344380878,1733398248897,-231.2,0.00028709,6]
[344380879,1733398248907,-547.84,0.00028735,2]
[344380880,1733398248916,-605.0,0.00028735,2]
[344380881,1733398248926,-157.389,0.0002874,120]
[344380882,1733398248936,-500.0,0.00028746,2]
[344380883,1733398248945,-500.0,0.00028767,2]
[344380884,1733398248955,-500.0,0.00028767,4]
[344380885,1733398248965,-164.93566459,0.000288,7]
[344380886,1733398248978,-155.0,0.00028854,2]
[344380887,1733398248988,-1500.0,0.00028876,5]
[344380888,1733398248998,-172.217951,0.00028919,2]
[344380889,1733398249008,-160.0,0.00028982,4]
[344380890,1733398249017,-244.0,0.00028997,2]
[344380891,1733398249027,-10863.01118894,0.00029,2]
[344380892,1733398249037,-250.0,0.00029,2]
[344380893,1733398249047,-264.79,0.00029,2]
[344380894,1733398249057,-142426.71408258,0.00029,7]
[344380895,1733398249067,-2140.0,0.00029,120]
[344380896,1733398249076,-84084.88981912,0.00029,30]
[344380897,1733398249085,-152.613386,0.00029,7]
[344380898,1733398249096,-152.613386,0.00029,7]
[344380899,1733398249105,-151.0,0.00029,7]
[344380900,1733398249115,-151.0,0.00029,7]
[344380901,1733398249124,-151.0,0.00029,7]
[344380902,1733398249134,-328.065593,0.00029,7]
[344380903,1733398249144,-328.065593,0.00029,7]
[344380904,1733398249154,-820.966407,0.00029,7]
[344380905,1733398249163,-820.966407,0.00029,7]
[344380906,1733398249173,-159.909918,0.00029,7]
[344380907,1733398249183,-159.909918,0.00029,7]
[344380908,1733398249193,-520.444339,0.00029,7]
[344380909,1733398249203,-520.444339,0.00029,7]
[344380910,1733398249213,-151.0,0.00029,7]
[344380911,1733398249225,-299.940531,0.00029,7]
[344380912,1733398249235,-385.020858,0.00029,7]
[344380913,1733398249245,-385.020858,0.00029,7]
[344380914,1733398249255,-172.322764,0.00029,7]
[344380915,1733398249265,-172.322764,0.00029,7]
[344380916,1733398249275,-470.961035,0.00029,7]
[344380917,1733398249285,-470.961035,0.00029,7]
[344380918,1733398249294,-151.0,0.00029,7]
[344380919,1733398249304,-151.0,0.00029,7]
[344380920,1733398249314,-151.0,0.00029,7]
[344380921,1733398249323,-151.0,0.00029,7]
[344380922,1733398249333,-151.0,0.00029,7]
[344380923,1733398249346,-197.596463,0.00029,7]
[344380924,1733398249356,-151.0,0.00029,7]
[344380925,1733398249366,-151.0,0.00029,7]
[344380926,1733398249376,-151.0,0.00029,7]
[344380927,1733398249387,-151.0,0.00029,7]
[344380928,1733398249397,-250.05217,0.00029,7]
[344380929,1733398249407,-172.299116,0.00029,7]
[344380930,1733398249417,-172.299116,0.00029,7]
[344380931,1733398249428,-395.519165,0.00029,7]
[344380932,1733398249439,-395.519165,0.00029,7]
[344380933,1733398249449,-352.705194,0.00029,7]
[344380934,1733398249459,-352.705194,0.00029,7]
[344380935,1733398249471,-547.84,0.00029009,2]
[344380936,1733398249481,-605.0,0.00029009,2]
[344380937,1733398249502,-500.0,0.0002902,2]
[344380938,1733398249514,-500.0,0.00029041,2]
[344380939,1733398249524,-268.5,0.000292,120]
[344380940,1733398249535,-150.5,0.000292,120]
[344380941,1733398249546,-173.45,0.000292,120]
[344380942,1733398249556,-150.5,0.0002921,120]
[344380943,1733398249566,-150.5,0.0002921,120]
[344380944,1733398249576,-259.31,0.0002921,120]
[344380945,1733398249587,-150.5,0.0002921,120]
[344380946,1733398249597,-150.5,0.0002922,120]
[344380947,1733398249608,-150.5,0.0002922,120]
[344380948,1733398249618,-150.5,0.0002922,120]
[344380949,1733398249630,-150.5,0.0002922,120]
[344380950,1733398249639,-231.2,0.00029267,7]
[344380951,1733398249650,-761.0,0.00029281,2]
[344380952,1733398249660,-547.84,0.00029283,2]
[344380953,1733398249670,-605.0,0.00029283,2]
[344380954,1733398249680,-379.33205688,0.00029294,2]
[344380955,1733398249690,-500.0,0.00029315,2]
[344380956,1733398249700,-446.75,0.00029331,2]
[344380957,1733398249710,-1067.84759488,0.00029333,2]
[344380958,1733398249723,-1010.53247986,0.00029462,3]
[344380959,1733398249733,-3322.01,0.000295,30]
[344380960,1733398249743,-547.84,0.00029557,2]
[344380961,1733398249753,-605.0,0.00029557,2]
[344380962,1733398249763,-502.80405413,0.00029589,2]
[344380963,1733398249773,-172.217951,0.00029625,2]
[344380964,1733398249785,-600.0,0.00029718,2]
[344380965,1733398249796,-8615.37,0.000298,2]
[344380966,1733398249805,-264.518844,0.000298,7]
[344380967,1733398249815,-231.2,0.00029825,7]
[344380968,1733398249826,-328.065593,0.00029826,7]
[344380969,1733398249839,-328.065593,0.00029826,7]
[344380970,1733398249849,-547.84,0.00029831,2]
[344380971,1733398249858,-605.0,0.00029831,2]
[344380972,1733398249869,-217.0,0.0002988,28]
[344380973,1733398249879,-820.966407,0.0002988,7]
[344380974,1733398249890,-820.966412,0.0002988,7]
[344380975,1733398249901,-1506.29934326,0.000299,5]
[344380976,1733398249910,-520.444339,0.000299,7]
[344380977,1733398249920,-520.444339,0.000299,7]
[344380978,1733398249930,-385.020858,0.000299,7]
[344380979,1733398249940,-385.020858,0.000299,7]
[344380980,1733398249951,-159.909918,0.00029918,7]
[344380981,1733398249962,-159.909918,0.00029918,7]
[344380982,1733398249973,-157.445,0.0002994,120]
[344380983,1733398249982,-234.42,0.0002995,120]
[344380984,1733398249992,-160.0,0.00029951,5]
[344380985,1733398250002,-1067.84759488,0.00029967,2]
[344380986,1733398250011,-2252.59,0.0003,7]
[344380987,1733398250022,-218.83815303,0.0003,30]
[344380988,1733398250031,-151.0,0.0003,120]
[344380989,1733398250040,-300.0,0.0003,14]
[344380990,1733398250050,-2500.0,0.0003,120]
[344380991,1733398250059,-210.0,0.0003,120]
[344380992,1733398250069,-6000.0,0.0003,15]
[344380993,1733398250079,-12793.16826525,0.0003,3]
[344380994,1733398250089,-460.0,0.0003,20]
[344380995,1733398250098,-459.0,0.0003,20]
[344380996,1733398250107,-459.0,0.0003,20]
[344380997,1733398250117,-459.0,0.0003,20]
[344380998,1733398250126,-209.0,0.0003,20]
[344380999,1733398250136,-152.613386,0.0003,7]
[344381000,1733398250145,-152.613386,0.0003,7]
[344381001,1733398250155,-151.0,0.0003,7]
[344381002,1733398250165,-291.595795,0.0003,7]
[344381003,1733398250175,-151.0,0.0003,7]
[344381004,1733398250184,-172.322764,0.0003,7]
[344381005,1733398250194,-172.322764,0.0003,7]
[344381006,1733398250203,-20299.26521712,0.0003,30]
[344381007,1733398250212,-470.961035,0.0003,7]
[344381008,1733398250224,-470.961035,0.0003,7]
[344381009,1733398250233,-151.0,0.0003,7]
[344381010,1733398250243,-194.256943,0.0003,7]
[344381011,1733398250255,-523.68,0.0003,31]
[344381012,1733398250265,-523.68,0.0003,31]
[344381013,1733398250275,-523.68,0.0003,31]
[344381014,1733398250284,-523.68,0.0003,31]
[344381015,1733398250294,-523.68,0.0003,31]
[344381016,1733398250303,-523.68,0.0003,31]
[344381017,1733398250312,-523.68,0.0003,31]
[344381018,1733398250322,-523.68,0.0003,31]
[344381019,1733398250331,-523.68,0.0003,31]
[344381020,1733398250343,-523.68,0.0003,31]
[344381021,1733398250354,-523.68,0.0003,31]
[344381022,1733398250363,-523.68,0.0003,31]
[344381023,1733398250372,-151.0,0.0003,7]
[344381024,1733398250383,-151.0,0.0003,7]
[344381025,1733398250392,-151.0,0.0003,7]
[344381026,1733398250401,-151.0,0.0003,7]
[344381027,1733398250411,-151.0,0.0003,7]
[344381028,1733398250422,-151.0,0.0003,7]
[344381029,1733398250432,-248.0,0.0003,2]
[344381030,1733398250441,-189.478,0.0003,2]
[344381031,1733398250451,-10059.42891073,0.0003,15]
[344381032,1733398250460,-151.0,0.0003,7]
[344381033,1733398250470,-1544.0,0.0003,14]
[344381034,1733398250483,-172.299116,0.0003,7]
[344381035,1733398250492,-172.299116,0.0003,7]
[344381036,1733398250502,-395.519165,0.0003,7]
[344381037,1733398250512,-395.519165,0.0003,7]
[344381038,1733398250522,-352.705194,0.0003,7]
[344381039,1733398250531,-352.705194,0.0003,7]
[344381040,1733398250541,-601.73087894,0.00030027,2]
[344381041,1733398250551,-5000.0,0.00030093,7]
[344381042,1733398250561,-26741.86704161,0.000301,7]
[344381043,1733398250570,-547.84,0.00030105,2]
[344381044,1733398250580,-605.0,0.00030105,2]
[344381045,1733398250589,-7421.26147869,0.00030136,7]
[344381046,1733398250598,-500.0,0.00030136,2]
[344381047,1733398250607,-251.25124686,0.00030136,2]
[344381048,1733398250616,-500.0,0.00030136,6]
[344381049,1733398250626,-1000.0,0.00030136,120]
[344381050,1733398250635,-187.234086,0.00030137,120]
[344381051,1733398250645,-2000.0,0.00030174,5]
[344381052,1733398250654,-150.0,0.00030179,120]
[344381053,1733398250664,-155.0,0.00030297,2]
[344381054,1733398250673,-547.84,0.00030379,2]
[344381055,1733398250683,-605.0,0.00030379,2]
[344381056,1733398250692,-231.2,0.00030383,7]
[344381057,1733398250702,-1304.03,0.000304,30]
[344381058,1733398250711,-1000.0,0.0003041,120]
[344381059,1733398250720,-532.0,0.00030411,2]
[344381060,1733398250739,-2170.0,0.00030411,2]
[344381061,1733398250748,-2374.0,0.00030411,2]
[344381062,1733398250758,-6867.41163489,0.00030425,2]
[344381063,1733398250767,-605.13256083,0.000305,2]
[344381064,1733398250777,-2003.22850763,0.000305,30]
[344381065,1733398250786,-500.0,0.00030529,2]
[344381066,1733398250797,-17703.27382573,0.000306,10]
[344381067,1733398250806,-328.065593,0.000306,7]
[344381068,1733398250815,-328.065596,0.000306,7]
[344381069,1733398250824,-151.0,0.000306,7]
[344381070,1733398250833,-159.909918,0.000306,7]
[344381071,1733398250842,-159.909918,0.000306,7]
[344381072,1733398250851,-520.444339,0.000306,7]
[344381073,1733398250861,-520.444348,0.000306,7]
[344381074,1733398250871,-385.020858,0.000306,7]
[344381075,1733398250880,-385.020851,0.000306,7]
[344381076,1733398250889,-1067.84759488,0.000306,2]
[344381077,1733398250899,-547.84,0.00030653,2]
[344381078,1733398250908,-605.0,0.00030653,2]
[344381079,1733398250917,-150.0,0.00030673,5]
[344381080,1733398250926,-1000.0,0.00030684,120]
[344381081,1733398250936,-20000.0,0.00030699,4]
[344381082,1733398250945,-20000.0,0.00030699,5]
[344381083,1733398250955,-20000.0,0.00030699,10]